bitfinex/quotes_ETHUSD_20250523
["timestamp","ask_amount","ask_price","bid_price","bid_amount"]
[1747985676250,7.50187546,2666.0,2665.6,11.239]
[1747985676429,3.75131932,2665.8,2665.6,11.239]
[1747985676953,3.75135986,2665.7,2665.6,11.239]
[1747985680091,3.7515006,2665.6,2665.5,14.389]
[1747985680354,4.3015006,2665.6,2665.5,14.39]
[1747985680761,4.3015006,2665.6,2665.4,16.182]
[1747985680762,4.30164134,2665.5,2665.4,16.182]
[1747985681067,4.30164134,2665.5,2665.4,30.572]
[1747985681422,3.75164134,2665.5,2665.4,30.572]
[1747985682630,4.30164134,2665.5,2665.4,16.182]
[1747985683036,5.70695815,2665.5,2665.4,30.572]
[1747985684322,4.30164134,2665.5,2665.4,30.572]
[1747985689056,4.30164134,2665.5,2665.4,30.573]
[1747985689700,4.30206363,2665.2,2665.1,14.411]
[1747985689975,5.17116363,2665.2,2665.1,14.411]
[1747985695392,10.30206363,2665.2,2665.1,14.413]
[1747985700502,11.13156363,2665.2,2665.1,0.02]
[1747985700995,21.21156363,2665.2,2665.1,0.02]
[1747985701297,23.70791501,2665.2,2665.1,0.02]
[1747985705432,5.14757196,2664.2,2664.1,0.02]
[1747985707716,4.30488134,2663.2,2663.1,0.02]
[1747985713412,3.75570849,2662.7,2662.2,3.75629036]
[1747985713724,3.75570849,2662.7,2662.3,14.389]
[1747985714012,1.3731,2663.0,2661.9,0.43635869]
[1747985714226,3.75568538,2662.7,2662.2,3.7562516]
[1747985714724,3.75530436,2662.9,2662.3,11.25]
[1747985715017,3.75522485,2663.0,2662.5,3.75576193]
[1747985715204,3.7553494,2662.9,2662.6,14.391]
[1747985715917,3.7553803,2662.9,2662.6,14.391]
[1747985716324,3.75546,2662.8,2662.6,14.391]
[1747985718896,3.75558643,2662.7,2662.6,14.391]
[1747985719110,3.75586854,2662.5,2662.4,24.2]
[1747985719312,3.75586854,2662.5,2662.4,38.592]
[1747985720226,3.75586854,2662.5,2662.4,24.2]
[1747985720427,3.75586854,2662.5,2662.4,38.593]
[1747985721630,1.3858,2663.1,2662.4,38.593]
[1747985721793,3.75544539,2662.8,2662.4,42.34302344]
[1747985722000,3.75544539,2662.8,2662.4,38.593]
[1747985722330,3.75553351,2662.8,2662.4,39.02935869]
[1747985722724,3.75534285,2662.9,2662.4,39.02935869]
[1747985722725,3.75560194,2662.7,2662.4,39.02935869]
[1747985723037,3.75560194,2662.7,2662.4,38.593]
[1747985723803,3.7556591,2662.7,2662.4,38.593]
[1747985724837,3.7557736,2662.6,2662.4,24.2]
[1747985725045,3.75566009,2662.7,2662.5,25.645]
[1747985725700,3.75572748,2662.6,2662.5,25.645]
[1747985726338,3.75572748,2662.6,2662.4,24.2]
[1747985726660,3.75572748,2662.6,2662.5,25.645]
[1747985728246,3.75572748,2662.6,2662.5,14.393]
[1747985730275,3.75586854,2662.5,2662.4,11.3343]
[1747985730475,3.75586854,2662.5,2662.4,25.7183]
[1747985730769,3.75586854,2662.5,2662.4,14.384]
[1747985730946,3.75615069,2662.3,2662.2,0.0823]
[1747985731142,3.75671512,2661.9,2661.8,0.0823]
[1747985731346,0.8778,2662.4,2661.8,14.4663]
[1747985731347,3.7566382,2662.0,2661.8,14.4663]
[1747985732757,3.75641022,2662.2,2661.8,17.09747311]
[1747985732758,3.75635804,2662.2,2661.8,17.09747311]
[1747985733053,3.75635804,2662.2,2661.9,0.03756314]
[1747985733256,3.75600961,2662.4,2661.9,0.0823]
[1747985733428,3.75625537,2662.3,2661.9,2.00472037]
[1747985734545,0.55,2662.7,2662.0,0.0823]
[1747985734950,3.75586854,2662.5,2662.0,0.0823]
[1747985735274,3.7561525,2662.3,2662.1,16.205]
[1747985735447,3.75608757,2662.4,2662.1,16.205]
[1747985735850,3.75615269,2662.3,2662.1,16.205]
[1747985736063,3.75615269,2662.3,2662.2,11.253]
[1747985736461,3.75629178,2662.2,2662.1,16.205]
[1747985736659,3.75629178,2662.2,2662.1,30.591]
[1747985747182,3.75629178,2662.2,2662.1,41.846]
[1747985748590,3.75629178,2662.2,2662.1,42.18755343]
[1747985748960,3.75629178,2662.2,2662.1,42.39666583]
[1747985749496,3.75629178,2662.2,2662.1,42.47896583]
[1747985749996,3.75629178,2662.2,2662.1,42.39666583]
[1747985753095,3.75629178,2662.2,2662.1,16.75566583]
[1747985753302,3.75629178,2662.2,2662.1,42.39666583]
[1747985753705,3.756574,2662.0,2661.4,3.75736553]
[1747985753998,3.756574,2662.0,2661.5,14.76273655]
[1747985754205,3.75651162,2662.1,2661.6,3.75713361]
[1747985754862,3.75651162,2662.1,2661.7,11.254]
[1747985755420,3.75651162,2662.1,2661.8,41.848]
[1747985755908,3.75658477,2662.0,2661.8,41.848]
[1747985756110,3.75659887,2662.0,2661.8,41.848]
[1747985757121,3.75650517,2662.1,2661.8,30.594]
[1747985757301,3.75664921,2662.0,2661.9,11.255]
[1747985758102,3.75652276,2662.1,2661.9,11.255]
[1747985759639,3.756574,2662.0,2661.9,11.255]
[1747985760421,3.75635598,2662.2,2661.9,11.255]
[1747985760693,3.756574,2662.0,2661.9,19.255]
[1747985761120,3.75650776,2662.1,2661.9,19.255]
[1747985763532,9.73557651,2662.8,2662.2,0.0672]
[1747985763533,6.9044,2662.8,2662.2,0.0672]
[1747985763830,3.75565431,2662.7,2662.3,14.376]
[1747985764029,3.75573134,2662.6,2662.4,11.255]
[1747985764469,3.75532879,2662.9,2662.4,11.255]
[1747985764598,3.75560181,2662.7,2662.4,11.255]
[1747985764802,3.75573392,2662.6,2662.4,11.255]
[1747985765749,3.75573392,2662.6,2662.5,0.20908583]
[1747985765948,5.98,2663.0,2662.5,8.61441096]
[1747985766244,5.98,2663.0,2662.5,12.37026267]
[1747985766421,3.75531227,2662.9,2662.5,8.61441096]
[1747985766610,3.75531227,2662.9,2662.6,0.20908583]
[1747985766811,3.75531227,2662.9,2662.7,0.33812513]
[1747985767008,3.75523881,2663.0,2662.8,14.376]
[1747985767208,3.75523881,2663.0,2662.9,11.254]
[1747985767209,3.7552412,2663.0,2662.9,11.254]
[1747985767529,3.7552412,2663.0,2662.9,11.46308583]
[1747985767735,3.7552412,2663.0,2662.9,11.80121096]
[1747985770066,4.50627913,2663.0,2662.9,0.54721096]
[1747985770353,5.95397913,2663.0,2662.9,0.54721096]
[1747985770505,5.95397913,2663.0,2662.9,0.33812513]
[1747985773250,5.40397913,2663.0,2662.9,0.33812513]
[1747985773552,4.65081982,2663.0,2662.9,0.5469399]
[1747985776219,3.75311982,2663.0,2662.9,0.5469399]
[1747985778767,4.30311982,2663.0,2662.9,0.5469399]
[1747985778972,4.30311982,2663.0,2662.9,14.9209399]
[1747985780337,5.18221982,2663.0,2662.9,14.9209399]
[1747985780535,6.67395562,2663.0,2662.9,14.9209399]
[1747985780964,6.67395562,2663.0,2662.9,0.5469399]
[1747985781264,6.67395562,2663.0,2662.9,14.9199399]
[1747985782863,6.12395562,2663.0,2662.9,14.9199399]
[1747985783070,3.75311982,2663.0,2662.9,14.9199399]
[1747985802104,3.75311982,2663.0,2662.9,26.1719399]
[1747985807828,3.75311982,2663.0,2662.9,26.1589399]
[1747985820042,3.75544539,2662.8,2662.6,16.203]
[1747985820242,3.75544539,2662.8,2662.7,14.36]
[1747985821353,3.75541013,2662.9,2662.7,25.612]
[1747985821649,3.75524024,2663.0,2662.7,29.36202344]
[1747985821808,3.75531573,2662.9,2662.7,29.36202344]
[1747985822659,3.75530436,2662.9,2662.8,25.596]
[1747985828262,3.75489575,2663.2,2662.6,16.203]
[1747985828564,3.75489575,2663.2,2662.8,25.596]
[1747985828565,3.75530436,2662.9,2662.8,25.596]
[1747985830465,3.75548829,2662.8,2586.5,4.03510331]
[1747985830759,3.75548829,2662.8,2662.3,3.75602732]
[1747985830962,3.75548829,2662.8,2662.4,3.75598741]
[1747985831127,3.75548829,2662.8,2662.5,14.344]
[1747985831754,3.75548829,2662.8,2662.6,11.252]
[1747985832364,3.75548829,2662.8,2662.7,0.34146535]
[1747985833203,3.75548829,2662.8,2662.7,0.55083439]
[1747985833373,3.75548829,2662.8,2662.7,14.89483439]
[1747985834878,3.75548829,2662.8,2662.7,26.14683439]
[1747985835983,3.75548829,2662.8,2662.7,0.55083439]
[1747985836285,4.59201801,2662.8,2662.7,14.89483439]
[1747985836770,3.75548829,2662.8,2662.7,14.89483439]
[1747985837491,3.46196432,2662.8,2662.7,14.89483439]
[1747985838688,4.60988524,2662.9,2662.7,14.89483439]
[1747985838979,3.75544539,2662.8,2662.7,14.89483439]
[1747985839151,3.75544539,2662.8,2662.7,14.68546535]
[1747985839983,3.75544539,2662.8,2662.7,14.89479944]
[1747985842483,3.75544539,2662.8,2662.7,14.89579944]
[1747985843130,3.75544539,2662.8,2662.7,14.89585306]
[1747985843449,4.59423115,2662.8,2662.7,14.89585306]
[1747985848938,4.59423115,2662.8,2661.8,3.75683594]
[1747985848939,3.75634992,2662.2,2661.4,0.19578089]
[1747985849176,3.75634992,2662.2,2661.8,3.75685576]
[1747985849974,3.7562094,2662.3,2661.8,3.75685576]
[1747985850176,3.7562094,2662.3,2661.9,11.253]
[1747985850377,3.7562094,2662.3,2662.0,15.84698558]
[1747985850580,3.7562094,2662.3,2661.8,3.75685576]
[1747985850581,0.9706,2662.4,2662.1,14.327]
[1747985850746,3.756574,2662.0,2661.9,11.253]
[1747985850944,3.7566837,2662.0,2661.9,14.327]
[1747985854289,4.72694007,2662.2,2661.9,14.327]
[1747985854462,3.756574,2662.0,2661.9,14.327]
[1747985855596,3.75673859,2661.9,2660.5,4.89587644]
[1747985855797,3.75673859,2661.9,2661.4,3.75741014]
[1747985855956,3.75686873,2661.8,2661.5,0.37574101]
[1747985856553,3.75678601,2661.9,2661.5,0.37574101]
[1747985856750,3.75678601,2661.9,2661.6,11.254]
[1747985856993,3.75623158,2662.3,2661.7,14.329]
[1747985857397,3.75643444,2662.1,2661.7,18.08599003]
[1747985857586,3.75634336,2662.2,2661.7,21.47393639]
[1747985857784,3.75621108,2662.3,2661.8,3.75679027]
[1747985857952,3.75631371,2662.2,2661.7,21.88032779]
[1747985859300,3.75631371,2662.2,2661.7,17.71694078]
[1747985860105,3.75665643,2662.0,2661.7,17.71694078]
[1747985860280,3.75665643,2662.0,2661.8,0.78991169]
[1747985860898,3.75671512,2661.9,2661.8,0.78991169]
[1747985861093,3.75671512,2661.9,2661.7,17.71694078]
[1747985861787,3.75671512,2661.9,2661.8,0.34193414]
[1747985862215,3.75671512,2661.9,2661.8,25.92593414]
[1747985865309,3.75671512,2661.9,2661.8,42.13293414]
[1747985865468,3.75671512,2661.9,2661.8,16.54893414]
[1747985865900,3.75671512,2661.9,2661.8,42.13293414]
[1747985866878,3.75671512,2661.9,2661.8,16.54893414]
[1747985867078,3.75671512,2661.9,2661.8,42.13393414]
[1747985868217,3.75664376,2662.0,2661.8,42.13393414]
[1747985868713,3.75671512,2661.9,2661.8,42.13393414]
[1747985868872,3.75671512,2661.9,2661.8,41.792]
[1747985869494,3.75669057,2662.0,2661.8,42.13430067]
[1747985869821,3.75670009,2662.0,2661.8,42.13430067]
[1747985870398,3.75670009,2662.0,2661.9,0.34230067]
[1747985874521,5.45251431,2662.0,2661.9,0.34230067]
[1747985874678,6.00251431,2662.0,2661.9,0.34230067]
[1747985884413,3.75713856,2661.6,2661.5,0.34230067]
[1747985884625,4.65133856,2661.6,2661.5,14.65530067]
[1747985884829,4.65133856,2661.6,2661.5,0.34230067]
[1747985885018,6.09017482,2661.6,2661.5,14.65530067]
[1747985885218,4.65133856,2661.6,2661.5,14.65530067]
[1747985886344,5.20133856,2661.6,2661.5,0.55121639]
[1747985886512,5.20133856,2661.6,2661.5,14.86421639]
[1747985887218,4.65133856,2661.6,2661.5,14.86421639]
[1747985887447,4.65133856,2661.6,2661.5,14.65530067]
[1747985889757,4.65133856,2661.6,2661.5,0.34230067]
[1747985889758,6.64017482,2661.6,2661.5,0.34230067]
[1747985890453,4.71770329,2661.2,2661.1,14.334]
[1747985890658,4.71770329,2661.2,2661.1,0.02]
[1747985890659,11.24770329,2661.2,2661.1,0.02]
[1747985891008,10.69770329,2661.2,2661.1,0.02]
[1747985891655,10.69770329,2661.2,2661.1,0.55896644]
[1747985893152,10.69770329,2661.2,2661.1,0.35037582]
[1747985893909,4.71770329,2661.2,2661.1,0.35037582]
[1747985895749,4.71770329,2661.2,2661.1,0.02]
[1747985896059,6.11523245,2661.2,2661.1,0.02]
[1747985898857,6.11523245,2661.2,2661.1,14.337]
[1747985899747,12.09523245,2661.2,2661.1,14.337]
[1747985900434,10.69770329,2661.2,2661.1,14.337]
[1747985900633,10.69770329,2661.2,2661.1,0.02]
[1747985903770,11.24770329,2661.2,2661.1,0.02]
[1747985904827,10.69770329,2661.2,2661.1,0.02]
[1747985905551,11.24770329,2661.2,2661.1,0.02]
[1747985905726,12.74823245,2661.2,2661.1,0.02]
[1747985909777,12.74823245,2661.2,2661.1,0.35110621]
[1747985909980,11.24770329,2661.2,2661.1,0.35110621]
[1747985910283,9.73770329,2661.2,2661.1,0.35110621]
[1747985911577,3.75770329,2661.2,2661.1,0.35110621]
[1747985913445,4.30770329,2661.2,2661.1,0.56037077]
[1747985914481,4.30770329,2661.2,2661.1,0.35110621]
[1747985914705,5.21043245,2661.2,2661.1,0.35110621]
[1747985915510,6.18883245,2661.2,2661.1,0.35110621]
[1747985917011,6.18883245,2661.2,2661.1,0.5606799]
[1747985919494,6.18883245,2661.2,2661.1,0.35110621]
[1747985919984,5.21043245,2661.2,2661.1,0.35110621]
[1747985921298,4.66043245,2661.2,2661.1,0.35110621]
[1747985921612,3.75770329,2661.2,2661.1,0.35110621]
[1747985921974,3.75770329,2661.2,2661.1,0.56080537]
[1747985922995,3.75833469,2660.8,2660.3,3.7588376]
[1747985923302,3.75834093,2660.8,2660.4,14.301]
[1747985923506,3.75774956,2661.2,2660.5,1.80598976]
[1747985923665,3.75834533,2660.8,2660.5,1.80598976]
[1747985924199,3.75834533,2660.8,2660.6,11.261]
[1747985925069,3.75815092,2660.9,2660.6,11.261]
[1747985925313,3.75840944,2660.7,2660.6,27.477]
[1747985925498,3.75840944,2660.7,2660.6,30.22460372]
[1747985926621,3.75840944,2660.7,2660.6,16.216]
[1747985926977,3.75840944,2660.7,2660.6,30.517]
[1747985927911,5.20500944,2660.7,2660.6,30.517]
[1747985928812,5.20571585,2660.2,2660.1,0.02]
[1747985929519,22.44671585,2660.2,2660.1,0.02]
[1747985929731,26.07528738,2660.2,2660.1,0.02]
[1747985930515,36.15528738,2660.2,2660.1,0.02]
[1747985930720,36.51517607,2660.2,2660.1,0.02]
[1747985931320,36.51617607,2660.2,2660.1,0.02]
[1747985932540,36.15628738,2660.2,2660.1,0.02]
[1747985932680,24.89428738,2660.2,2660.1,0.02]
[1747985932881,36.15628738,2660.2,2660.1,0.02]
[1747985933984,36.15828738,2660.2,2660.1,0.02]
[1747985936405,36.15928738,2660.2,2660.1,0.02]
[1747985937518,24.89428738,2660.2,2660.1,0.02]
[1747985939322,19.81911585,2660.2,2660.1,0.02]
[1747985943513,3.75911585,2660.2,2660.1,0.0383]
[1747985944102,3.75911585,2660.2,2660.1,0.02]
[1747985947021,3.75935455,2660.1,2659.6,3.75989247]
[1747985947216,6.9483,2660.6,2659.8,3.75959858]
[1747985947217,3.75904029,2660.3,2659.8,3.75959858]
[1747985947422,3.75904029,2660.3,2659.9,1.80505986]
[1747985947750,9.73863754,2660.6,2660.1,3.75918775]
[1747985947948,9.73863754,2660.6,2659.9,5.89491882]
[1747985947949,9.73863754,2660.6,2660.2,14.29]
[1747985948100,3.75867782,2660.6,2660.3,11.265]
[1747985948444,3.75883325,2660.4,2660.3,11.265]
[1747985948620,3.75883325,2660.4,2660.3,13.84132107]
[1747985949215,3.75883325,2660.4,2660.3,11.59528524]
[1747985949421,3.75883325,2660.4,2660.3,14.62028524]
[1747985950094,3.75883325,2660.4,2660.3,14.29]
[1747985953015,5.28853325,2660.4,2660.3,14.29]
[1747985953457,4.30911585,2660.2,2660.1,14.289]
[1747985953651,3.76012871,2659.5,2659.0,3.76072113]
[1747985953967,3.76012871,2659.5,2659.1,25.88401452]
[1747985954317,3.76003592,2659.6,2659.1,29.64468084]
[1747985954511,3.76003592,2659.6,2659.2,0.2086759]
[1747985954711,0.55,2660.0,2659.3,0.33101452]
[1747985954947,0.9087,2659.7,2659.3,0.33101452]
[1747985955162,3.76010528,2659.5,2659.4,14.4976759]
[1747985955313,3.76002805,2659.6,2659.4,14.82869042]
[1747985955512,3.76010528,2659.5,2659.4,0.53969042]
[1747985955819,3.76010528,2659.5,2659.4,14.82869042]
[1747985956013,3.76010528,2659.5,2659.4,0.53969042]
[1747985956247,3.76010528,2659.5,2659.4,14.82869042]
[1747985957132,3.76010528,2659.5,2659.4,14.289]
[1747985958720,6.0097122,2659.5,2659.4,14.289]
[1747985958915,3.76052948,2659.2,2659.1,16.221]
[1747985959278,3.76052948,2659.2,2659.1,30.72017983]
[1747985959615,3.76052948,2659.2,2659.1,30.84304301]
[1747985960422,3.76052948,2659.2,2659.1,30.511]
[1747985961664,3.76052948,2659.2,2659.1,41.777]
[1747985962030,3.76046705,2659.3,2659.1,42.31773619]
[1747985962365,3.76046705,2659.3,2659.1,46.06775963]
[1747985962671,3.76046705,2659.3,2659.2,0.20906541]
[1747985962871,5.98,2659.4,2659.2,0.20906541]
[1747985963074,5.98,2659.4,2659.2,1.01263545]
[1747985963228,5.98,2659.4,2659.2,0.20906541]
[1747985963229,3.76038807,2659.3,2659.2,0.20906541]
[1747985963731,3.76038807,2659.3,2659.2,14.50106541]
[1747985963926,10.68317093,2659.4,2659.2,14.50106541]
[1747985963927,9.74031573,2659.4,2659.2,14.50106541]
[1747985964173,5.98,2659.4,2659.2,14.50106541]
[1747985964474,9.73913237,2660.2,2659.3,7.0415925]
[1747985964629,3.75974929,2659.8,2659.4,11.267]
[1747985964836,3.75958608,2659.9,2659.4,15.02713296]
[1747985965138,3.75970914,2659.8,2659.5,0.20906541]
[1747985965478,3.75974646,2659.8,2659.6,0.33083118]
[1747985965676,3.75974646,2659.8,2659.7,14.292]
[1747985965838,3.75974646,2659.8,2659.7,14.50106541]
[1747985966182,3.75974646,2659.8,2659.7,14.83189659]
[1747985966351,3.75960566,2659.9,2659.7,14.83189659]
[1747985966546,3.75968117,2659.8,2659.7,14.83189659]
[1747985966755,3.75961608,2659.9,2659.7,14.83189659]
[1747985966950,3.75960873,2659.9,2659.7,14.62283118]
[1747985967150,3.75960873,2659.9,2659.7,16.23325299]
[1747985967357,5.98,2660.2,2659.8,0.33083118]
[1747985967557,3.75948577,2660.0,2659.8,0.33083118]
[1747985967771,3.75948577,2660.0,2659.9,0.20895025]
[1747985968301,3.75948577,2660.0,2659.4,11.267]
[1747985968302,3.76137816,2658.6,2658.5,0.2089]
[1747985968465,3.76166114,2658.4,2658.3,1.19031845]
[1747985968649,4.31166114,2658.4,2658.3,1.19031845]
[1747985968844,5.24206114,2658.4,2658.3,1.19031845]
[1747985969180,4.31194417,2658.2,2658.1,0.02]
[1747985969363,4.31194417,2658.2,2658.1,14.313]
[1747985970599,3.76194417,2658.2,2658.1,14.313]
[1747985971183,3.76194417,2658.2,2658.1,0.02]
[1747985971359,5.15735956,2658.2,2658.1,0.02]
[1747985972590,4.31194417,2658.2,2658.1,0.02]
[1747985973793,4.31194417,2658.2,2658.1,14.48]
[1747985979695,4.31194417,2658.2,2658.1,0.02]
[1747985979997,4.31194417,2658.2,2658.1,14.484]
[1747985980201,4.31194417,2658.2,2658.1,0.02]
[1747985980407,5.21235956,2658.2,2658.1,0.02]
[1747985982097,6.11155956,2658.2,2658.1,0.02]
[1747985986217,22.17155956,2658.2,2658.1,0.02]
[1747985990406,3.76312854,2657.4,2656.3,3.76463501]
[1747985990600,3.7633398,2657.3,2656.7,3.7639375]
[1747985990805,3.76337357,2657.2,2656.7,3.7639375]
[1747985991105,3.76353667,2657.1,2656.6,3.76415151]
[1747985991408,3.76344172,2657.2,2656.7,3.76405654]
[1747985991704,3.76343744,2657.2,2656.8,11.275]
[1747985992002,3.7633643,2657.2,2656.9,15.99177526]
[1747985992173,3.7633643,2657.2,2657.0,0.20874438]
[1747985992363,3.76323481,2657.3,2657.0,0.20874438]
[1747985992701,3.76297447,2657.5,2657.0,0.20874438]
[1747985993001,3.76315006,2657.4,2657.0,2.8610991]
[1747985993303,3.76322543,2657.3,2657.1,0.20874438]
[1747985993810,3.76322543,2657.3,2657.0,2.65235472]
[1747985993980,3.76314836,2657.4,2657.0,2.65235472]
[1747985994181,3.76322692,2657.3,2657.1,0.3764635]
[1747985994381,3.76313826,2657.4,2657.1,0.3764635]
[1747985994700,3.7629747,2657.5,2657.1,0.3764635]
[1747985994701,3.76323044,2657.3,2657.1,0.3764635]
[1747985995093,3.76314417,2657.4,2657.1,0.3764635]
[1747985995295,3.76251034,2657.8,2657.1,16.6124635]
[1747985995499,3.7632183,2657.3,2657.2,0.30288182]
[1747985995699,3.76251034,2657.8,2657.1,16.236]
[1747985996203,3.76310572,2657.4,2657.2,0.20926335]
[1747985996512,3.7632183,2657.3,2657.2,0.20926335]
[1747985998495,3.76295591,2657.5,2657.2,0.20926335]
[1747985998496,3.76295591,2657.5,2657.3,0.0614]
[1747985998818,3.76295591,2657.5,2657.4,14.468]
[1747985999122,3.76293508,2657.5,2657.4,14.67726335]
[1747986000815,3.76293508,2657.5,2657.4,15.01228411]
[1747986001518,3.76293508,2657.5,2657.4,0.54428411]
[1747986001710,3.76293508,2657.5,2657.4,15.01228411]
[1747986002434,5.98,2657.9,2657.4,16.51351252]
[1747986002435,9.74248032,2657.9,2657.4,16.51351252]
[1747986002730,3.7620096,2658.2,2657.7,3.76258943]
[1747986003031,0.44883192,2658.5,2658.0,0.0614]
[1747986003239,0.44883192,2658.5,2658.1,34.47606098]
[1747986003438,3.78101917,2658.9,2658.3,3.76178372]
[1747986003637,3.78101917,2658.9,2658.4,11.275]
[1747986003795,3.78098672,2658.9,2658.4,11.275]
[1747986003996,3.78098672,2658.9,2658.5,0.20926335]
[1747986004222,3.78098672,2658.9,2658.6,14.5384]
[1747986004223,3.76123669,2658.7,2658.6,14.5384]
[1747986004430,3.76123669,2658.7,2658.6,26.14842076]
[1747986004732,3.78100533,2658.9,2658.6,26.14842076]
[1747986004733,3.76109523,2658.8,2658.6,26.14842076]
[1747986004943,3.76109523,2658.8,2658.6,26.35768411]
[1747986005108,3.76123669,2658.7,2658.6,26.35768411]
[1747986005297,3.76123669,2658.7,2658.6,15.08268411]
[1747986005645,3.76123669,2658.7,2658.6,26.35568411]
[1747986006137,3.76123669,2658.7,2658.6,15.08268411]
[1747986006345,3.76123669,2658.7,2658.6,26.35568411]
[1747986006522,3.76123669,2658.7,2658.6,0.60568411]
[1747986006727,3.76123669,2658.7,2658.6,26.35368411]
[1747986006929,3.76123669,2658.7,2658.6,26.29228411]
[1747986007100,3.76123669,2658.7,2658.6,15.01928411]
[1747986008037,3.76123669,2658.7,2658.6,0.54428411]
[1747986008342,3.76123669,2658.7,2658.6,15.01728411]
[1747986008502,4.43263842,2658.7,2658.6,0.54428411]
[1747986008698,4.43263842,2658.7,2658.6,0.33502076]
[1747986008896,4.43263842,2658.7,2658.6,14.80802076]
[1747986009542,4.43263842,2658.7,2658.6,0.33502076]
[1747986009702,3.76123669,2658.7,2658.6,14.80802076]
[1747986010843,3.76123669,2658.7,2658.6,14.473]
[1747986011071,3.76111161,2658.8,2658.1,16.237]
[1747986011215,3.76178318,2658.4,2658.2,25.745]
[1747986011403,3.76178318,2658.4,2658.2,14.473]
[1747986011404,3.76180265,2658.3,2658.2,14.473]
[1747986011602,3.76144402,2658.6,2658.2,3.11376507]
[1747986011810,3.7615931,2658.5,2658.3,25.95355077]
[1747986012012,3.76123611,2658.8,2658.4,0.33211928]
[1747986012214,3.76151965,2658.5,2658.4,0.33211928]
[1747986012811,3.76145383,2658.6,2658.4,0.33211928]
[1747986013017,3.76114083,2658.8,2658.4,2.04188257]
[1747986013240,3.76127309,2658.7,2658.4,2.04188257]
[1747986013542,3.76127309,2658.7,2658.5,0.33211928]
[1747986013703,3.76127309,2658.7,2658.6,0.20853488]
[1747986014202,3.76127309,2658.7,2658.6,0.54065416]
[1747986014408,3.76117636,2658.8,2658.6,0.54065416]
[1747986014941,3.78103089,2658.9,2658.6,0.33211928]
[1747986015143,0.02,2658.9,2658.7,4.15468595]
[1747986015333,0.02,2658.9,2658.8,14.8874686]
[1747986015716,0.02,2658.9,2658.8,15.0957735]
[1747986015921,0.02,2658.9,2658.8,15.01242418]
[1747986018210,0.02,2658.9,2658.8,0.54042418]
[1747986018411,0.02,2658.9,2658.8,26.28242418]
[1747986020353,0.02,2658.9,2658.8,26.28142418]
[1747986020748,3.78095377,2658.9,2658.8,26.28142418]
[1747986021159,0.02,2658.9,2658.8,26.28142418]
[1747986021362,0.02,2658.9,2658.8,28.9157066]
[1747986022365,0.02,2658.9,2658.8,0.54042418]
[1747986022366,3.78095377,2658.9,2658.8,0.54042418]
[1747986022569,4.72285377,2658.9,2658.8,0.54042418]
[1747986022866,4.72285377,2658.9,2658.4,14.47]
[1747986022867,3.76151965,2658.5,2658.4,14.47]
[1747986023561,3.76140239,2658.6,2657.3,3.76993504]
[1747986023562,3.76194417,2658.2,2657.3,3.76993504]
[1747986023809,3.76194417,2658.2,2657.7,3.76257987]
[1747986024355,3.76194417,2658.2,2657.8,0.54105866]
[1747986024555,3.76194417,2658.2,2657.9,14.469]
[1747986024755,3.76194417,2658.2,2657.8,0.54105866]
[1747986024950,3.76194417,2658.2,2657.9,14.89936385]
[1747986025292,3.76222723,2658.0,2657.9,16.228]
[1747986025499,3.76222723,2658.0,2657.9,30.697]
[1747986026184,3.76222723,2658.0,2657.9,30.9058756]
[1747986026395,3.76222723,2658.0,2657.9,31.23863049]
[1747986026770,3.76222723,2658.0,2657.9,16.76963049]
[1747986026971,3.76222723,2658.0,2657.9,31.23963049]
[1747986027166,4.51465898,2658.0,2657.9,31.23963049]
[1747986028095,4.51465898,2658.0,2657.9,16.56075489]
[1747986028266,4.51465898,2658.0,2657.9,31.03075489]
[1747986029289,3.76222723,2658.0,2657.9,31.03075489]
[1747986029461,3.76222723,2658.0,2657.9,31.24207148]
[1747986030108,5.26222723,2658.0,2657.9,31.03275489]
[1747986030616,5.26222723,2658.0,2657.9,30.7]
[1747986030787,6.16465898,2658.0,2657.9,30.7]
[1747986031399,6.16465898,2658.0,2657.9,16.228]
[1747986031726,3.76307669,2657.4,2657.1,16.231]
[1747986031892,4.6782432,2657.0,2656.9,15.06730998]
[1747986032098,4.6782432,2657.0,2656.9,0.59530998]
[1747986032310,6.07241989,2657.0,2656.9,0.59530998]
[1747986032511,6.07241989,2657.0,2656.2,1.19031845]
[1747986032512,4.64623501,2656.3,2656.2,1.19031845]
[1747986033082,4.64623501,2656.3,2656.2,15.66331845]
[1747986034430,0.4646235,2656.2,2655.3,3.7659833]
[1747986034614,3.76539736,2655.8,2655.4,14.563]
[1747986034809,4.6463323,2656.3,2655.4,14.563]
[1747986034810,3.76550131,2655.7,2655.4,14.563]
[1747986035012,3.76534377,2655.8,2655.4,14.563]
[1747986035354,3.76550138,2655.7,2655.5,16.236]
[1747986035527,3.76530409,2655.9,2655.5,16.44490273]
[1747986035712,3.76536368,2655.8,2655.5,16.44490273]
[1747986036037,3.76533951,2655.9,2655.6,14.563]
[1747986036235,3.76543652,2655.8,2655.6,14.77190273]
[1747986036424,3.7652571,2655.9,2655.6,14.77190273]
[1747986036620,3.76514352,2656.0,2655.6,18.52192617]
[1747986036820,3.76512797,2656.0,2655.6,18.52192617]
[1747986037309,3.76512797,2656.0,2655.6,18.31302344]
[1747986037507,3.76480261,2656.2,2655.7,25.838]
[1747986037958,0.8816,2656.3,2655.8,14.566]
[1747986038151,3.76520033,2656.0,2655.8,14.566]
[1747986038449,3.765202,2655.9,2655.8,14.566]
[1747986038880,3.76513285,2656.0,2655.8,14.566]
[1747986039183,3.7652039,2655.9,2655.7,11.277]
[1747986039387,3.76510618,2656.0,2655.8,14.566]
[1747986039692,3.76493262,2656.1,2655.8,14.566]
[1747986039865,3.76502747,2656.1,2655.8,14.566]
[1747986040074,3.76506044,2656.0,2655.8,14.566]
[1747986040382,3.76491848,2656.1,2655.8,14.566]
[1747986040535,3.76542959,2655.8,2655.3,3.76597786]
[1747986040734,3.76542959,2655.8,2655.6,11.277]
[1747986041176,3.76542959,2655.8,2655.7,25.844]
[1747986041335,3.76495584,2656.1,2655.7,25.844]
[1747986041533,3.76472119,2656.3,2655.8,3.76527831]
[1747986041733,3.76506024,2656.0,2655.9,14.567]
[1747986042160,3.7655015,2655.7,2655.5,11.278]
[1747986042377,0.55,2656.0,2654.9,0.3]
[1747986042576,4.64583223,2656.1,2654.9,0.3]
[1747986042879,4.64583223,2656.1,2655.2,3.76617948]